bitfinex/quotes_SOLUSD_20211001
["timestamp","ask_amount","ask_price","bid_price","bid_amount"]
[1633100959813,0.02497396,155.23,155.09,58.34071743]
[1633100962102,2.19,155.26,155.1,2.19]
[1633100962300,0.02497396,155.25,155.1,2.19]
[1633100962502,154.3692,155.28,155.11,56.60716743]
[1633100962503,0.02497396,155.27,155.11,56.60716743]
[1633100962702,0.02497396,155.27,155.12,2.19]
[1633100962904,24.7240516,155.27,155.12,58.79716743]
[1633100963104,24.7240516,155.27,155.13,20.55280574]
[1633100963502,24.7240516,155.27,155.13,56.60716743]
[1633100963903,0.02497396,155.27,155.13,56.60716743]
[1633100964104,0.02497396,155.27,155.14,19.46947241]
[1633100964307,0.02497396,155.27,155.15,2.19]
[1633100964504,0.02497396,155.3,155.15,38.24436169]
[1633100964711,0.02497396,155.31,155.16,55.5238341]
[1633100964914,191.6585,155.32,155.17,2.19]
[1633100965112,78.1426,155.32,155.17,57.7138341]
[1633100965311,0.02497396,155.34,155.18,55.5238341]
[1633100965512,0.02497396,155.38,155.19,2.19]
[1633100965714,0.02497396,155.38,155.19,57.7138341]
[1633100965923,0.02497396,155.4,155.2,55.5238341]
[1633100966123,0.02497396,155.4,155.21,2.19]
[1633100966323,28.99577116,155.4,155.21,57.7138341]
[1633100966524,0.02497396,155.39,155.22,55.5238341]
[1633100966726,0.02497396,155.4,155.23,2.19]
[1633100966927,186.3727,155.42,155.23,2.19]
[1633100966928,0.02497396,155.41,155.23,57.7138341]
[1633100967127,0.02497396,155.41,155.24,55.5238341]
[1633100967325,0.02497396,155.41,155.25,2.19]
[1633100967526,0.02497396,155.41,155.25,57.7138341]
[1633100967725,29.13862977,155.42,155.26,55.5238341]
[1633100967925,29.13862977,155.42,155.27,2.19]
[1633100968125,0.02497396,155.43,155.27,57.7138341]
[1633100968325,0.02497396,155.47,155.28,36.05436169]
[1633100968527,0.02497396,155.47,155.29,2.19]
[1633100968728,0.02497396,155.47,155.29,36.13947241]
[1633100968925,0.02497396,155.47,155.3,55.5238341]
[1633100969129,25.28652864,155.47,155.31,2.19]
[1633100969327,0.02497396,155.46,155.31,57.7138341]
[1633100969529,0.02497396,155.46,155.32,55.5238341]
[1633100969725,0.02497396,155.46,155.33,2.19]
[1633100971325,25.26155468,155.47,155.33,21.65947241]
[1633100971529,75.99517396,155.49,155.33,57.7138341]
[1633100971726,73.80517396,155.49,155.33,57.7138341]
[1633100972528,28.08165013,155.48,155.33,57.7138341]
[1633100972928,0.02497396,155.49,155.33,57.7138341]
[1633100973127,2.19,155.5,155.33,57.7138341]
[1633100973326,2.19,155.5,155.33,2.8238341]
[1633100973929,2.19,155.5,155.34,18.06334385]
[1633100974128,2.19,155.5,155.35,2.19]
[1633100975630,0.02497396,155.49,155.35,2.19]
[1633100976030,2.21497396,155.5,155.35,2.19]
[1633100976229,0.02497396,155.49,155.32,2.19]
[1633100976429,2.19,155.48,155.32,2.19]
[1633100976630,28.38094334,155.47,155.32,2.19]
[1633100976829,2.21497396,155.46,155.3,78.5961]
[1633100977030,0.02497396,155.45,155.28,2.19]
[1633100977232,2.19,155.44,155.28,2.19]
[1633100977432,23.42598641,155.43,155.28,2.19]
[1633100977631,2.21497396,155.42,155.28,2.19]
[1633100978632,2.21497396,155.42,155.23,19.05578948]
[1633100978831,0.02497396,155.41,155.19,2.19]
[1633100979032,2.19,155.4,155.19,2.19]
[1633100979232,27.37643758,155.39,155.19,2.19]
[1633100979431,2.21497396,155.38,155.19,2.19]
[1633100979630,0.02497396,155.37,155.19,2.19]
[1633100979834,2.19,155.36,155.19,2.19]
[1633100980034,22.23946929,155.35,155.19,2.19]
[1633100980231,0.02497396,155.34,155.19,2.19]
[1633100981231,24.40449533,155.35,155.19,2.19]
[1633100981831,396.01505281,155.32,155.19,2.19]
[1633100982032,22.3849002,155.31,155.19,2.19]
[1633100982435,22.40987416,155.31,155.19,2.19]
[1633100982832,22.3849002,155.31,155.19,2.19]
[1633100983232,22.40987416,155.31,155.19,2.19]
[1633100983633,22.3849002,155.31,155.19,2.19]
[1633100984033,24.5749002,155.31,155.15,2.19]
[1633100984434,24.59987416,155.31,155.15,2.19]
[1633100984834,24.59987416,155.31,155.15,19.13132531]
[1633100985635,41.32687416,155.31,155.15,19.13132531]
[1633100985835,0.02497396,155.3,155.1,2.19]
[1633100986037,2.19,155.29,155.09,2.19]
[1633100986236,21.38890965,155.28,155.09,2.19]
[1633100986435,2.21497396,155.27,155.09,2.19]
[1633100986636,0.02497396,155.26,155.09,2.19]
[1633100986835,2.19,155.25,155.09,2.19]
[1633100987038,29.55830402,155.24,155.09,2.19]
[1633100987238,31.74830402,155.24,155.08,31.22771248]
[1633100987437,0.02497396,155.23,155.08,31.22771248]
[1633100987640,2.19,155.22,155.08,31.22771248]
[1633100987839,22.22577517,155.21,155.08,31.22771248]
[1633100988041,22.22577517,155.21,155.06,45.79649999]
[1633100988439,2.19,155.2,155.06,43.60649999]
[1633100988844,0.02497396,155.19,155.06,43.60649999]
[1633100989039,2.19,155.18,155.06,43.60649999]
[1633100989239,26.69839118,155.17,155.06,43.60649999]
[1633100989441,2.19,155.16,155.06,43.60649999]
[1633100990043,0.02497396,155.15,155.06,43.60649999]
[1633100990245,2.19,155.14,155.06,43.60649999]
[1633100990442,26.64558452,155.13,155.06,43.60649999]
[1633100991442,2.19,155.12,155.06,43.60649999]
[1633100995244,26.64558452,155.13,155.06,43.60649999]
[1633100996245,28.83558452,155.13,155.06,43.60649999]
[1633100996845,2.21497396,155.13,155.06,43.60649999]
[1633100997247,2.19,155.13,155.06,43.60649999]
[1633100997447,378.58119454,155.15,155.06,43.60649999]
[1633100997847,29.14832016,155.14,155.06,43.60649999]
[1633100999250,31.33832016,155.14,155.06,43.60649999]
[1633101000451,0.02497396,155.13,155.06,43.60649999]
[1633101000652,2.19,155.12,155.06,43.60649999]
[1633101000853,27.69966247,155.11,155.06,43.60649999]
[1633101001050,43.60649999,155.06,155.0,16.80238435]
[1633101001250,66.72949999,155.06,154.91,118.69]
[1633101001452,21.88867015,155.05,154.91,118.69]
[1633101001651,21.88867015,155.05,154.91,116.5]
[1633101001851,24.07867015,155.05,154.91,116.5]
[1633101002252,3.36208592,155.04,154.91,116.5]
[1633101002453,2.19,155.03,154.91,116.5]
[1633101002655,25.96154979,155.02,154.91,116.5]
[1633101002860,2.19,155.01,154.91,116.5]
[1633101004257,0.02497396,155.0,154.91,116.5]
[1633101004457,2.19,154.99,154.91,116.5]
[1633101004657,23.04388757,154.98,154.91,116.5]
[1633101004856,2.19,154.97,154.91,116.5]
[1633101005257,2.19,154.97,154.76,2.19]
[1633101005459,21.36,154.97,154.76,2.19]
[1633101005657,21.36,154.97,154.77,28.90894581]
[1633101006256,21.36,154.97,154.75,116.5]
[1633101006457,0.02497396,154.96,154.75,116.5]
[1633101006657,2.19,154.95,154.75,116.5]
[1633101006860,26.58601684,154.94,154.75,116.5]
[1633101007058,68.45497396,154.93,154.75,116.5]
[1633101007258,54.89497396,154.92,154.72,0.00808364]
[1633101007458,26.06421284,154.89,154.72,0.00808364]
[1633101007659,2.19,154.88,154.72,0.00808364]
[1633101008860,2.5929124,154.84,154.72,0.00808364]
[1633101009059,29.82788066,154.83,154.72,0.00808364]
[1633101009460,0.35257498,154.78,154.72,0.00808364]
[1633101009659,31.07644777,154.77,154.72,0.00808364]
[1633101011260,2.19,154.77,154.72,0.00808364]
[1633101012260,23.44332082,154.77,154.72,0.00808364]
[1633101014661,0.35257498,154.74,154.72,0.00808364]
[1633101014862,29.35508508,154.73,154.72,0.00808364]
[1633101016865,2.19,154.73,154.72,0.00808364]
[1633101017265,0.35257498,154.74,154.72,0.00808364]
[1633101017867,0.00257498,154.74,154.72,0.00808364]
[1633101018469,0.00257498,154.74,154.72,16.2183085]
[1633101019067,0.00257498,154.74,154.73,106.19]
[1633101019268,0.02497396,154.92,154.74,104.0]
[1633101019269,2.19,154.92,154.74,104.0]
[1633101019468,2.19,154.92,154.75,2.19]
[1633101019668,2.19,154.92,154.75,48.70739289]
[1633101020067,2.19,154.92,154.76,92.28232486]
[1633101020068,29.33077794,154.92,154.76,92.28232486]
[1633101020268,2.19,154.92,154.76,92.28232486]
[1633101020470,2.19,154.92,154.77,17.50466931]
[1633101020869,2.19,154.95,154.78,45.62183734]
[1633101021071,2.19,154.95,154.79,2.19]
[1633101021271,2.19,154.95,154.79,49.12267067]
[1633101021474,2.19,154.95,154.8,30.30716803]
[1633101021671,2.19,154.95,154.81,2.19]
[1633101021870,2.19,154.95,154.81,18.81550264]
[1633101022070,2.19,154.95,154.82,16.62550264]
[1633101022271,2.19,154.95,154.82,18.81550264]
[1633101022872,2.19,154.95,154.83,16.62550264]
[1633101023272,2.19,154.98,154.83,18.81550264]
[1633101025072,2.19,154.98,154.84,16.62550264]
[1633101028874,374.25700201,155.01,154.99,7.42239862]
[1633101029074,45.82147395,155.06,154.99,7.42239862]
[1633101029277,45.79649999,155.06,154.99,7.42239862]
[1633101029675,45.82147395,155.06,154.99,7.42239862]
[1633101029873,24.81741226,155.05,154.99,7.42239862]
[1633101030074,2.21497396,155.04,154.99,7.42239862]
[1633101030274,0.02497396,155.03,154.99,7.42239862]
[1633101031275,2.19,155.02,154.99,0.00239862]
[1633101031478,2.21497396,155.02,154.99,0.00239862]
[1633101031675,0.02497396,155.01,154.99,0.00239862]
[1633101031879,2.19,155.0,154.99,0.00239862]
[1633101032076,1.71497396,155.0,154.99,0.00239862]
[1633101034078,21.66797396,155.0,154.99,0.00239862]
[1633101036481,21.643,155.0,154.99,0.00239862]
[1633101037883,16.1517,154.98,154.77,2.19]
[1633101038182,2.19,154.97,154.75,7.29829]
[1633101038382,0.02497396,154.96,154.75,7.29829]
[1633101038582,2.19,154.95,154.75,7.29829]
[1633101038781,0.02497396,154.94,154.75,7.29829]
[1633101038982,29.55769233,154.92,154.75,7.29829]
[1633101039183,2.19,154.91,154.75,7.29829]
[1633101039784,2.19,154.91,154.75,56.27880804]
[1633101040181,25.664,154.91,154.75,56.27880804]
[1633101040581,25.664,154.91,154.75,23.25572269]
[1633101040781,25.664,154.91,154.75,15.95743269]
[1633101040984,27.78867537,154.88,154.75,15.95743269]
[1633101041184,2.19,154.87,154.72,0.00808364]
[1633101041383,23.758,154.87,154.72,0.00808364]
[1633101043782,28.12024897,154.85,154.72,0.00808364]
[1633101043983,2.19,154.84,154.72,0.00808364]
[1633101044987,26.67067232,154.82,154.72,0.00808364]
[1633101045185,2.19,154.81,154.72,0.00808364]
[1633101046386,2.21497396,154.81,154.72,0.00808364]
[1633101049287,21.87515843,154.78,154.72,0.00808364]
[1633101049488,2.19,154.77,154.72,0.00808364]
[1633101049689,2.21497396,154.77,154.72,0.00808364]
[1633101050090,26.4403241,154.74,154.72,0.00808364]
[1633101050288,2.19,154.73,154.72,0.00808364]
[1633101050489,25.812,154.73,154.72,0.00808364]
[1633101052292,25.812,154.73,154.55,116.5]
[1633101052491,25.812,154.73,154.52,2.19]
[1633101052694,2.55974955,154.72,154.52,2.19]
[1633101052892,28.64924109,154.7,154.52,2.19]
[1633101053094,2.19,154.69,154.52,2.19]
[1633101053291,18.783,154.69,154.5,194.4973]
[1633101053692,18.783,154.69,154.5,116.5]
[1633101053893,27.69170984,154.66,154.5,116.5]
[1633101054093,2.19,154.65,154.5,116.5]
[1633101054303,24.091,154.65,154.5,116.5]
[1633101054492,24.091,154.65,154.46,74.5885]
[1633101054693,24.091,154.65,154.44,33.40752979]
[1633101055493,24.091,154.65,154.44,31.21752979]
[1633101055494,26.67357834,154.65,154.44,31.21752979]
[1633101055694,26.67357834,154.65,154.43,72.5644]
[1633101056095,0.02497396,154.64,154.41,78.3435]
[1633101056297,29.96226447,154.62,154.41,78.3435]
[1633101056495,2.19,154.61,154.41,78.3435]
[1633101056694,23.584,154.61,154.41,78.3435]
[1633101056895,248.02572986,154.34,154.33,2.19]
[1633101057096,248.02572986,154.34,154.32,116.5]
[1633101057097,45.61606734,154.34,154.32,116.5]
[1633101057295,45.61606734,154.34,154.25,2.19]
[1633101057495,45.61606734,154.34,154.24,75.0491]
[1633101057496,45.61606734,154.34,154.26,2.19]
[1633101057898,45.61606734,154.34,154.27,22.60251654]
[1633101058097,27.18206734,154.34,154.27,22.60251654]
[1633101058498,2.19,154.42,154.34,27.18206734]
[1633101059298,2.19,154.46,154.34,27.18206734]
[1633101059899,74.9741,154.54,154.34,27.18206734]
[1633101060099,2.19,154.53,154.35,2.19]
[1633101060602,2.19,154.53,154.37,28.63360631]
[1633101060802,2.19,154.53,154.38,2.19]
[1633101062604,2.19,154.53,154.39,29.89995566]
[1633101062804,2.19,154.56,154.4,2.19]
[1633101063210,2.19,154.56,154.4,32.08995566]
[1633101063405,2.19,154.56,154.41,25.14055996]
[1633101063609,2.19,154.56,154.42,2.19]
[1633101064405,2.19,154.6,154.42,2.19]
[1633101064606,2.19,154.6,154.42,32.120939]
[1633101064806,5.55748173,154.6,154.42,32.120939]
[1633101065606,3.36748173,154.6,154.42,32.120939]
[1633101066806,2.19,154.59,154.42,32.120939]
[1633101067009,15.12011439,154.58,154.42,32.120939]
[1633101067208,2.19,154.57,154.42,32.120939]
[1633101067410,2.19,154.57,154.42,2.19]
[1633101067608,2.19,154.57,154.41,25.14055996]
[1633101070611,0.02497396,154.56,154.41,25.14055996]
[1633101070828,2.19,154.55,154.38,7.31579]
[1633101071015,0.02497396,154.54,154.38,7.31579]
[1633101071210,2.19,154.53,154.38,7.31579]
[1633101071410,0.02497396,154.52,154.38,7.31579]
[1633101071612,2.19,154.51,154.38,7.31579]
[1633101071811,0.02497396,154.5,154.38,34.20765461]
[1633101072413,2.19,154.49,154.38,34.20765461]
[1633101072616,17.52735737,154.48,154.38,34.20765461]
[1633101073416,2.19,154.49,154.38,34.20765461]
[1633101074413,2.19,154.49,154.38,51.10129788]
[1633101074814,23.15155059,154.49,154.38,51.10129788]
[1633101076219,23.15155059,154.49,154.38,43.78550788]
[1633101077418,2.19,154.49,154.38,43.78550788]
[1633101081432,2.19,154.52,154.38,43.78550788]
[1633101081826,0.02497396,154.53,154.38,74.2392691]
[1633101082025,194.1947,154.67,154.38,74.2392691]
[1633101082026,2.19,154.58,154.38,74.2392691]
[1633101082224,2.21497396,154.58,154.38,74.2392691]
[1633101082425,0.02497396,154.58,154.38,81.5550591]
[1633101082624,2.19,154.61,154.39,3.25474831]
[1633101082826,2.19,154.61,154.4,9.50484]
[1633101083025,2.19,154.61,154.41,28.13543031]
[1633101083227,2.19,154.61,154.42,2.19]
[1633101083626,2.19,154.61,154.43,34.22721222]
[1633101083825,0.02497396,154.62,154.43,34.22721222]
[1633101083826,0.02497396,154.62,154.44,2.19]
[1633101084029,0.02497396,154.64,154.45,7.31247]
[1633101084225,2.19,154.65,154.46,2.19]
[1633101084428,76.8393,154.67,154.46,57.08815652]
[1633101084631,76.8393,154.67,154.47,27.04430479]
[1633101084827,76.8393,154.67,154.48,2.19]
[1633101085025,93.97512291,154.67,154.48,53.48755438]
[1633101085225,76.8393,154.67,154.49,17.07034216]
[1633101085426,76.8393,154.67,154.5,2.19]
[1633101085626,2.21497396,154.68,154.5,36.41721222]
[1633101085843,2.21497396,154.68,154.51,51.29755438]
[1633101086027,503.99241791,154.68,154.52,2.19]
[1633101086229,528.1877488,154.68,154.52,81.04754329]
[1633101086427,503.99241791,154.68,154.53,34.22721222]
[1633101086630,503.99241791,154.68,154.53,51.29755438]
[1633101086826,503.99241791,154.68,154.54,17.07034216]
[1633101087030,503.99241791,154.68,154.54,51.29755438]
[1633101087433,501.77744395,154.68,154.55,62.25807709]
[1633101087633,0.02497396,154.71,154.56,2.19]
[1633101087832,2.21497396,154.74,154.56,18.35756438]
[1633101088030,2.21497396,154.74,154.57,16.16756438]
[1633101088229,2.21497396,154.74,154.58,2.19]
[1633101088629,2.21497396,154.74,154.59,16.16756438]
[1633101088846,2.21497396,154.74,154.6,32.23133573]
[1633101089030,2.19,154.74,154.6,32.23133573]
[1633101089233,2.19,154.74,154.61,16.16756438]
[1633101089430,0.02497396,154.77,154.61,18.35756438]
[1633101089630,1.2407,154.73,154.61,18.35756438]
[1633101089830,1.2407,154.73,154.62,16.16756438]
[1633101090230,0.7407,154.73,154.62,16.16756438]
[1633101090435,0.7407,154.73,154.63,24.2829391]
[1633101091432,0.7407,154.73,154.63,26.4729391]
[1633101091858,0.7407,154.73,154.63,42.64050348]
[1633101092833,0.7407,154.79,154.63,42.64050348]
[1633101093235,17.49372139,154.77,154.63,16.16756438]
[1633101093437,2.21497396,154.76,154.58,9.49632]
[1633101093638,0.02497396,154.75,154.58,9.49632]
[1633101093835,2.19,154.74,154.58,25.92908438]
[1633101094037,0.02497396,154.73,154.58,25.92908438]
[1633101094235,2.19,154.72,154.58,48.99313339]
[1633101094437,0.02497396,154.71,154.58,48.99313339]
[1633101094635,2.21497396,154.71,154.58,48.99313339]
[1633101094852,22.68117988,154.7,154.58,48.99313339]
[1633101095836,0.7407,154.69,154.58,48.99313339]
[1633101096235,0.7407,154.69,154.58,80.33622339]
[1633101097040,28.41530132,154.68,154.58,80.33622339]
[1633101097854,28.41530132,154.68,154.58,57.27217438]
[1633101098239,28.41530132,154.68,154.58,25.92908438]
[1633101099042,0.7407,154.67,154.58,25.92908438]
[1633101099444,0.0007,154.67,154.59,28.78299808]
[1633101099651,0.0007,154.67,154.6,2.19]
[1633101099843,0.0007,154.67,154.6,49.68282271]
[1633101100045,0.0007,154.67,154.61,47.49282271]
[1633101100244,0.0007,154.67,154.62,2.19]
[1633101100446,0.0007,154.67,154.62,49.68282271]
[1633101100644,0.0007,154.67,154.63,31.34309]
[1633101100861,0.0007,154.67,154.64,2.19]
[1633101101044,0.0007,154.67,154.64,18.33973271]
[1633101101245,0.0007,154.67,154.65,16.14973271]
[1633101101453,0.0007,154.67,154.66,106.19]
[1633101101845,0.0007,154.67,154.66,122.56318827]
[1633101104048,0.0007,154.67,154.66,153.90627827]
[1633101104451,0.02497396,154.81,154.67,104.0]
[1633101104648,0.02497396,154.84,154.68,2.19]
[1633101104853,0.02497396,154.86,154.68,51.21118938]
[1633101105050,0.02497396,154.86,154.69,17.67809938]
[1633101105250,0.02497396,154.86,154.7,26.87854145]
[1633101105451,0.02497396,154.86,154.7,58.22163145]
[1633101105654,0.02497396,154.86,154.71,49.02118938]
[1633101105852,0.02497396,154.9,154.72,2.19]
[1633101106052,0.02497396,154.9,154.73,7.29924]
[1633101106251,0.02497396,154.92,154.74,2.19]
[1633101106453,2.19,154.98,154.75,28.59861767]
[1633101106653,0.02497396,154.97,154.76,131.1898]
[1633101106868,0.02497396,154.98,154.78,1.99200766]
[1633101107051,0.02497396,154.98,154.79,9.48641]
[1633101107252,328.32094714,155.14,154.8,54.87]
[1633101107253,0.02497396,155.04,154.8,54.87]
[1633101107460,0.02497396,155.06,154.81,9.48496]
[1633101107651,25.89136991,155.06,154.83,54.87]
[1633101107851,0.02088,155.06,154.84,9.4835]
[1633101108052,0.02088,155.09,154.84,9.4835]
[1633101108254,0.02088,155.09,154.86,54.87]
[1633101108553,0.02088,155.11,154.87,40.84557]
[1633101108752,23.39342332,155.11,154.88,82.27974277]
[1633101108952,23.39342332,155.11,154.89,9.48066]
[1633101108953,0.02088,155.1,154.89,9.48066]
[1633101109152,23.37254332,155.11,154.9,0.02088]
[1633101109353,23.37254332,155.11,154.92,24.17361573]
[1633101109552,23.37254332,155.11,154.93,9.50069]
[1633101109753,23.37254332,155.11,154.93,9.47981]
[1633101109954,23.37254332,155.11,154.94,17.50622337]
[1633101110152,23.37254332,155.11,154.96,26.82699028]
[1633101110355,23.37254332,155.11,154.97,2.19]
[1633101110553,23.37254332,155.11,154.97,19.69622337]
[1633101110751,23.37254332,155.11,154.98,17.50622337]
[1633101110952,23.37254332,155.11,155.0,28.08122369]
[1633101111352,23.37254332,155.11,155.0,45.58744706]
[1633101111551,23.37254332,155.11,155.0,17.50622337]
[1633101111952,0.02088,155.1,154.97,2.19]
[1633101112554,0.02088,155.1,154.98,30.13117547]
[1633101112753,0.02088,155.13,154.99,2.19]
[1633101112953,470.65213333,155.1,154.99,18.78571781]
[1633101113153,2.19,155.14,154.99,18.78571781]
[1633101113354,2.19,155.14,155.0,16.59571781]
[1633101113554,21.91806325,155.13,155.01,27.71898815]
[1633101114952,21.91806325,155.13,155.01,44.31470596]
[1633101115353,21.91806325,155.13,155.01,27.71898815]
[1633101115870,21.91806325,155.13,155.01,44.31470596]
[1633101116254,21.91806325,155.13,155.01,27.71898815]
[1633101116455,21.91806325,155.13,155.02,2.19]
[1633101116653,3.38208113,155.14,155.02,2.19]
[1633101117052,3.36120113,155.14,155.02,2.19]
[1633101118654,27.34083323,155.15,155.02,2.19]
[1633101119055,0.02088,155.14,155.02,2.19]
[1633101119255,27.34083323,155.15,155.02,2.19]
[1633101120659,27.34083323,155.15,155.02,17.75602392]
[1633101122558,0.02088,155.14,155.02,2.19]
[1633101123359,29.53083323,155.15,155.03,22.91020902]
[1633101123958,2.19,155.15,155.03,22.91020902]
[1633101124160,54.87,155.29,155.22,56.57547994]
[1633101124359,40.0,155.25,155.22,7.994e-05]
[1633101124559,32.07,155.27,155.22,7.994e-05]
[1633101124560,2.21088,155.24,155.22,7.994e-05]
[1633101124759,0.02088,155.27,155.26,28.14438443]
[1633101124963,2.21088,155.3,155.26,29.59125528]
[1633101125159,0.02088,155.29,155.26,29.59125528]
[1633101125360,2.19,155.28,155.26,29.59125528]
[1633101125567,551.93183107,155.32,155.26,29.59125528]
[1633101125766,2.19,155.32,155.26,29.59125528]
[1633101126364,2.19,155.37,155.26,29.59125528]
[1633101126968,908.76445497,155.39,155.26,31.78125528]
[1633101127169,908.76445497,155.39,155.26,51.4536079]
[1633101127368,0.02088,155.45,155.26,51.4536079]
[1633101127569,0.02088,155.45,155.26,85.04587124]
[1633101127768,0.02088,155.46,155.26,85.04587124]
[1633101128182,78.6681,155.47,155.26,85.06716884]
[1633101128380,29.89314331,155.5,155.27,54.8912976]
[1633101128577,76.5751,155.52,155.29,0.0212976]
[1633101128779,76.5751,155.52,155.3,2.19]
[1633101128978,76.5751,155.52,155.31,7.2932776]
[1633101129177,76.5751,155.52,155.32,2.2112976]
[1633101129378,76.5751,155.52,155.33,7.2923376]
[1633101129578,76.5751,155.52,155.34,2.2112976]
[1633101129778,26.17196294,155.53,155.35,0.0212976]
[1633101129979,26.17196294,155.53,155.36,2.19]
[1633101130178,26.17196294,155.53,155.37,0.0212976]
[1633101130380,5.54857482,155.52,155.38,2.19]
[1633101131180,2.19,155.52,155.38,2.19]
[1633101131982,2.19,155.59,155.54,34.32946817]
[1633101132186,2.19,155.59,155.54,53.97646817]
[1633101132783,2.29808364,155.63,155.54,53.97646817]
[1633101132987,0.10808364,155.63,155.54,53.97646817]
[1633101133582,0.10808364,155.63,155.55,2.19]
[1633101134181,0.10808364,155.63,155.56,0.0212976]
[1633101134382,0.10808364,155.63,155.57,2.19]
[1633101134584,0.10808364,155.63,155.58,0.0212976]
[1633101134786,0.10808364,155.63,155.58,19.8952976]
[1633101135584,0.10808364,155.63,155.59,0.0212976]
[1633101135785,0.10808364,155.63,155.55,2.19]
[1633101136587,0.10808364,155.63,155.54,34.32946817]
[1633101139387,34.32946817,155.54,155.48,0.0212976]
[1633101139588,34.32946817,155.54,155.43,0.0212976]
[1633101139787,34.32946817,155.54,155.41,0.0212976]
[1633101140386,34.32946817,155.54,155.41,34.67378316]
[1633101140787,34.32946817,155.54,155.42,0.0212976]
[1633101141189,34.32946817,155.54,155.4,0.0212976]
[1633101141386,34.32946817,155.54,155.36,0.0212976]
[1633101141988,34.32946817,155.54,155.34,0.0212976]
[1633101143390,2.06,155.53,155.34,0.0212976]
[1633101143590,27.59926513,155.52,155.32,0.0212976]
[1633101143794,27.59926513,155.52,155.3,0.0212976]
[1633101143991,2.06,155.51,155.3,0.0212976]
[1633101144193,19.812,155.51,155.29,0.0212976]
[1633101144590,2.06,155.51,155.3,2.06]
[1633101144791,2.06,155.51,155.31,0.02088]
[1633101144992,2.06,155.51,155.31,32.74719889]
[1633101145190,2.06,155.51,155.32,32.72631889]
[1633101145792,2.06,155.51,155.33,0.02088]
[1633101146193,2.06,155.51,155.33,32.74719889]
[1633101146394,2.06,155.51,155.34,0.02088]
[1633101146991,27.59926513,155.52,155.35,32.72631889]
[1633101147192,34.32946817,155.54,155.35,32.72631889]
[1633101147393,34.32946817,155.54,155.35,50.97131889]
[1633101147591,34.32946817,155.54,155.36,15.47929654]
[1633101147791,34.32946817,155.54,155.37,2.08088]
[1633101147991,34.32946817,155.54,155.38,2.06]
[1633101148392,34.32946817,155.54,155.38,50.97873386]
[1633101148595,34.32946817,155.54,155.39,32.72631889]
[1633101148792,34.32946817,155.54,155.39,50.97873386]
[1633101149192,34.32946817,155.54,155.4,32.72631889]
[1633101150193,34.32946817,155.54,155.4,49.58550386]
[1633101150392,34.32946817,155.54,155.4,47.08550386]
[1633101150594,34.32946817,155.54,155.4,0.00550386]
[1633101150794,34.32946817,155.54,155.35,49.40494831]
[1633101150795,24.11598594,155.53,155.35,49.40494831]
[1633101150994,24.11598594,155.53,155.27,189.29818]
[1633101150995,0.0212976,155.52,155.32,2.06]
[1633101151195,22.03468834,155.53,155.32,2.06]
[1633101151395,22.03468834,155.53,155.32,32.19161259]
[1633101151396,22.05598594,155.53,155.32,32.19161259]
[1633101151799,0.0212976,155.53,155.32,32.19161259]
[1633101151996,0.0212976,155.53,155.33,7.27104]
[1633101152197,34.32946817,155.54,155.34,2.08088]
[1633101152398,34.32946817,155.54,155.35,7.27011]
[1633101152599,34.32946817,155.54,155.36,2.06]
[1633101152799,34.32946817,155.54,155.36,22.21]
[1633101152998,34.32946817,155.54,155.36,52.34161259]
[1633101153198,34.32946817,155.54,155.36,22.21]
[1633101153399,34.32946817,155.54,155.36,2.06]
[1633101153600,0.0212976,155.53,155.36,2.06]
[1633101153799,0.0212976,155.53,155.35,7.27011]
[1633101154400,0.0212976,155.52,155.35,7.27011]
[1633101154803,0.0212976,155.53,155.35,37.40172259]
[1633101155404,0.0212976,155.53,155.35,55.94072259]
[1633101156005,418.11862516,155.49,155.35,55.94072259]
[1633101156207,27.11047008,155.48,155.35,55.94072259]
[1633101157407,27.11047008,155.48,155.35,58.00072259]
[1633101158407,26.61047008,155.48,155.35,58.00072259]
[1633101159807,26.61047008,155.48,155.35,55.94072259]
[1633101160011,26.63176768,155.48,155.3,30.13161259]
[1633101160209,26.63176768,155.48,155.28,2.06]